[Event "RUS-ch Rapid Men 2018"]
[Site "Sochi"]
[Date "2018.10.05"]
[Round "3"]
[White "Grachev, Boris"]
[Black "Tsvetkov, Andrey"]
[Result "1-0"]
[ECO "D00"]
[WhiteElo "2626"]
[BlackElo "2264"]
[Annotator "RC"]
[PlyCount "125"]
[EventDate "2018.10.05"]
[EventType "swiss"]
[EventCountry "RUS"]
[SourceTitle "playchess.com"]
[Source "ChessBase"]
[SourceQuality "1"]
[TimeControl "900+10"]

1. d4 {[%emt 0:00:00]} d5 {[%emt 0:00:00]} 2. Bf4 {[%emt 0:00:00]} c5 {[%emt 0:00:00]} 3. e3 {[%emt 0:00:00]} Nc6 {[%emt 0:00:00]} 4. c3 {[%emt 0:00:01]} Nf6 {[%emt 0:00:00]} 5. Nd2 {[%emt 0:00:03]} Bf5 {[%emt 0:00:28]} 6. Ngf3 {[%emt 0:00:50]} e6 {[%emt 0:00:03]} 7. Nh4 {[%emt 0:00:02]} Bg4 {[%emt 0:00:20]} 8. Qb3 {[%emt 0:00:02]} Qc8 {[%emt 0:00:40]} 9. h3 {[%emt 0:00:03]} Bh5 {[%emt 0:00:02]} 10. g4 {[%emt 0:00:03]} Bg6 {[%emt 0:00:01]} 11. Nxg6 {[%emt 0:00:04]} hxg6 {[%emt 0:00:02]} 12. Bg2 {[%emt 0:00:01]} Be7 {[%emt 0:00:40]} 13. O-O {[%emt 0:00:07]} O-O {[%emt 0:00:16]} 14. Rfe1 {[%emt 0:00:07]} Rd8 {[%emt 0:00:18]} 15. Rad1 {[%emt 0:00:04]} Nd7 {[%emt 0:00:31]} 16. Nf3 {[%emt 0:00:36]} Nf6 {[%emt 0:01:06]} 17. Qc2 {[%emt 0:00:45]} cxd4 {[%emt 0:00:14]} 18. exd4 {[%emt 0:00:24]} b5 {[%emt 0:00:22]} 19. Bf1 {[%emt 0:03:34]} b4 {[%emt 0:00:28]} 20. Rc1 {[%emt 0:00:38]} Qb7 {[%emt 0:06:15]} 21. Qa4 {[%emt 0:01:05]} Bd6 {[%emt 0:02:47]} 22. Bxd6 {[%emt 0:01:23]} Rxd6 {[%emt 0:00:02]} 23. cxb4 {[%emt 0:00:02]} Qxb4 {[%emt 0:00:53]} 24. Qxb4 {[%emt 0:00:39]} Nxb4 {[%emt 0:00:01]} 25. a3 {[%emt 0:00:35]} Nc6 {[%emt 0:00:09]} 26. Rc2 {[%emt 0:00:36]} Ne4 {[%emt 0:01:33]} 27. Rec1 {[%emt 0:00:17]} Ne7 {[%emt 0:00:02]} 28. Rc7 {[%emt 0:01:11]} Kf8 {[%emt 0:00:10]} 29. b4 {[%emt 0:00:41]} f6 {[%emt 0:00:21]} 30. Bd3 {[%emt 0:00:30]} Ke8 {[%emt 0:00:50]} 31. Kf1 {[%emt 0:02:18]} Kd8 {[%emt 0:00:34]} 32. Ke2 {[%emt 0:00:26]} Rc8 {[%emt 0:00:49]} 33. Rxc8+ {[%emt 0:00:03]} Nxc8 {[%emt 0:00:01]} 34. Ke3 {[%emt 0:00:01]} Kd7 {[%emt 0:00:30]} 35. a4 {[%emt 0:00:37]} Rb6 {[%emt 0:00:09]} 36. b5 {[%emt 0:00:32]} Ncd6 {[%emt 0:00:03]} 37. h4 {[%emt 0:00:17]} Rb8 {[%emt 0:00:07]} 38. Ng1 {[%emt 0:01:10]} Rc8 {[%emt 0:00:18]} 39. Rxc8 {[%emt 0:00:08]} Kxc8 {[%emt 0:00:01]} 40. Ne2 {[%emt 0:00:04]} e5 {[%emt 0:00:12]} 41. f3 {[%emt 0:00:12]} exd4+ {[%emt 0:00:14]} 42. Kxd4 {[%emt 0:00:04]} Nd2 {[%emt 0:00:01]} 43. Kxd5 {[%emt 0:00:09]} Kd7 {[%emt 0:00:07]} 44. f4 {[%emt 0:01:13]} Nf3 {[%emt 0:00:18]} 45. Bxg6 {[%emt 0:00:14]} Nxh4 {[%emt 0:00:01]} 46. Bd3 {[%emt 0:00:03]} Ng2 {[%emt 0:00:05]} 47. Kd4 {[%emt 0:00:07]} Ne1 {[%emt 0:00:06]} 48. Be4 {[%emt 0:00:18]} Nxe4 {[%emt 0:00:27]} 49. Kxe4 {[%emt 0:00:02]} Nc2 {[%emt 0:00:05]} 50. Nd4 {[%emt 0:00:13]} Nb4 {[%emt 0:00:26]} 51. Nc6 {[%emt 0:00:28]} Na2 {[%emt 0:00:00]} 52. Kd4 {[%emt 0:00:05]} Nc1 {[%emt 0:00:08]} 53. f5 {[%emt 0:00:24]} Ne2+ {[%emt 0:00:07]} 54. Kc4 {[%emt 0:00:03]} Nf4 {[%emt 0:00:15]} 55. Nxa7 {[%emt 0:00:03]} Kd6 {[%emt 0:00:01]} 56. a5 {[%emt 0:00:08]} Kc7 {[%emt 0:00:05]} 57. Nc6 {[%emt 0:00:06]} Ng2 {[%emt 0:00:05]} 58. Kd4 {[%emt 0:00:05]} Ne1 {[%emt 0:00:03]} 59. Nb4 {[%emt 0:00:19]} Nf3+ {[%emt 0:00:02]} 60. Kc5 {[%emt 0:00:01]} Ne5 {[%emt 0:00:02]} 61. b6+ {[%emt 0:00:04]} Kc8 {[%emt 0:00:01]} 62. a6 {[%emt 0:00:10]} Nd7+ {[%emt 0:00:02]} 63. Kb5 {[%emt 0:00:02]} 1-0

[Event "RUS-ch Rapid Men 2018"]
[Site "Sochi"]
[Date "2018.10.05"]
[Round "3"]
[White "Maletin, Pavel"]
[Black "Chigaev, Maksim"]
[Result "1-0"]
[ECO "E63"]
[WhiteElo "2586"]
[BlackElo "2599"]
[Annotator "ChessBase"]
[PlyCount "89"]
[EventDate "2018.10.05"]
[EventType "swiss"]
[EventCountry "RUS"]
[SourceTitle "playchess.com"]
[Source "ChessBase"]
[SourceQuality "1"]
[TimeControl "900+10"]

1. c4 {[%emt 0:00:00]} g6 {[%emt 0:00:00]} 2. Nf3 {[%emt 0:00:00]} Bg7 {[%emt 0:00:00]} 3. d4 {[%emt 0:00:00]} Nf6 {[%emt 0:00:00]} 4. g3 {[%emt 0:00:00]} O-O {[%emt 0:00:02]} 5. Bg2 {[%emt 0:00:00]} d6 {[%emt 0:00:01]} 6. Nc3 {[%emt 0:00:01]} Nc6 {[%emt 0:00:02]} 7. O-O {[%emt 0:00:05]} a6 {[%emt 0:00:01]} 8. b3 {[%emt 0:00:06]} Bd7 {[%emt 0:00:42]} 9. Bb2 {[%emt 0:01:00]} Rb8 {[%emt 0:00:13]} 10. Nd5 {[%emt 0:00:49]} Nh5 {[%emt 0:02:00]} 11. e4 {[%emt 0:00:29]} e5 {[%emt 0:01:32]} 12. h3 {[%emt 0:00:39]} Re8 {[%emt 0:01:22]} 13. Re1 {[%emt 0:03:05]} exd4 {[%emt 0:02:17]} 14. Nxd4 {[%emt 0:00:04]} Ne5 {[%emt 0:00:06]} 15. Rb1 {[%emt 0:01:09]} c6 {[%emt 0:01:42]} 16. Ne3 {[%emt 0:00:23]} c5 {[%emt 0:01:23]} 17. Ndf5 {[%emt 0:01:39]} gxf5 {[%emt 0:01:18]} 18. Qxh5 {[%emt 0:00:06]} fxe4 {[%emt 0:00:18]} 19. Bxe4 {[%emt 0:02:27]} Ng6 {[%emt 0:00:02]} 20. Ng4 {[%emt 0:01:15]} Bxg4 {[%emt 0:01:13]} 21. Qxg4 {[%emt 0:00:41]} Bxb2 {[%emt 0:00:14]} 22. Rxb2 {[%emt 0:00:01]} Qf6 {[%emt 0:03:00]} 23. Rbe2 {[%emt 0:00:09]} Kf8 {[%emt 0:00:10]} 24. Bxb7 {[%emt 0:01:09]} Ne5 {[%emt 0:00:36]} 25. Qe4 {[%emt 0:00:07]} h5 {[%emt 0:00:38]} 26. Bd5 {[%emt 0:00:27]} Ng6 {[%emt 0:00:17]} 27. Qf3 {[%emt 0:00:59]} Qxf3 {[%emt 0:00:01]} 28. Bxf3 {[%emt 0:00:02]} Rxe2 {[%emt 0:00:01]} 29. Rxe2 {[%emt 0:00:02]} h4 {[%emt 0:00:01]} 30. Bh5 {[%emt 0:01:53]} Ne5 {[%emt 0:00:00]} 31. f4 {[%emt 0:00:25]} Nc6 {[%emt 0:00:02]} 32. g4 {[%emt 0:00:04]} a5 {[%emt 0:00:15]} 33. f5 {[%emt 0:00:09]} Nd4 {[%emt 0:00:13]} 34. Re3 {[%emt 0:00:07]} f6 {[%emt 0:00:36]} 35. g5 {[%emt 0:00:02]} fxg5 {[%emt 0:00:23]} 36. f6 {[%emt 0:00:00]} Nc6 {[%emt 0:00:07]} 37. Re6 {[%emt 0:00:11]} Rd8 {[%emt 0:00:03]} 38. Kf2 {[%emt 0:00:12]} a4 {[%emt 0:00:12]} 39. bxa4 {[%emt 0:00:02]} Ne5 {[%emt 0:00:13]} 40. a5 {[%emt 0:00:08]} Rb8 {[%emt 0:00:00]} 41. a6 g4 42. hxg4 {[%emt 0:00:32]} h3 {[%emt 0:00:31]} 43. a7 {[%emt 0:00:08]} Ra8 {[%emt 0:00:02]} 44. Re8+ {[%emt 0:00:06]} Rxe8 {[%emt 0:00:02]} 45. Bxe8 {[%emt 0:00:01]} 1-0

[Event "RUS-ch Rapid Men 2018"]
[Site "Sochi"]
[Date "2018.10.05"]
[Round "3"]
[White "Sakaev, Konstantin"]
[Black "Drygalov, Sergey"]
[Result "1/2-1/2"]
[ECO "E12"]
[WhiteElo "2584"]
[BlackElo "2446"]
[Annotator "ChessBase"]
[PlyCount "70"]
[EventDate "2018.10.05"]
[EventType "swiss"]
[EventCountry "RUS"]
[SourceTitle "playchess.com"]
[Source "ChessBase"]
[SourceQuality "1"]
[TimeControl "900+10"]

1. d4 {[%emt 0:00:00]} Nf6 {[%emt 0:00:00]} 2. c4 {[%emt 0:00:00]} e6 {[%emt 0:00:00]} 3. Nf3 {[%emt 0:00:00]} b6 {[%emt 0:00:09]} 4. a3 {[%emt 0:00:02]} Ba6 {[%emt 0:00:07]} 5. Qc2 {[%emt 0:00:05]} Bb7 {[%emt 0:00:01]} 6. Nc3 {[%emt 0:00:04]} c5 {[%emt 0:00:01]} 7. e4 {[%emt 0:00:05]} cxd4 {[%emt 0:00:03]} 8. Nxd4 {[%emt 0:00:01]} Bc5 {[%emt 0:00:01]} 9. Nb3 {[%emt 0:00:04]} Nc6 {[%emt 0:00:03]} 10. Bd3 {[%emt 0:00:28]} O-O {[%emt 0:02:40]} 11. O-O {[%emt 0:00:14]} a6 {[%emt 0:01:35]} 12. Nxc5 {[%emt 0:00:40]} bxc5 {[%emt 0:00:03]} 13. Bg5 {[%emt 0:00:54]} h6 {[%emt 0:00:54]} 14. Bh4 {[%emt 0:00:02]} g5 {[%emt 0:00:28]} 15. Bg3 {[%emt 0:00:03]} e5 {[%emt 0:00:01]} 16. f3 {[%emt 0:02:15]} d6 {[%emt 0:00:23]} 17. Bf2 {[%emt 0:00:09]} a5 {[%emt 0:00:57]} 18. Rab1 {[%emt 0:03:32]} Nd4 {[%emt 0:01:08]} 19. Qd1 {[%emt 0:02:03]} Bc6 {[%emt 0:00:20]} 20. b4 {[%emt 0:00:32]} axb4 {[%emt 0:00:37]} 21. axb4 {[%emt 0:00:01]} Nh5 {[%emt 0:01:51]} 22. b5 {[%emt 0:00:07]} Bb7 {[%emt 0:00:01]} 23. Ne2 {[%emt 0:02:21]} Ra3 {[%emt 0:01:43]} 24. Qd2 {[%emt 0:01:11]} Qa8 {[%emt 0:00:50]} 25. Bxd4 {[%emt 0:00:44]} cxd4 {[%emt 0:00:13]} 26. Rfc1 {[%emt 0:00:13]} Rc8 {[%emt 0:00:29]} 27. Ng3 {[%emt 0:00:11]} Nf4 {[%emt 0:01:55]} 28. Bf1 {[%emt 0:00:07]} Rd8 {[%emt 0:02:11]} 29. Nf5 {[%emt 0:00:40]} Kh7 {[%emt 0:00:20]} 30. c5 {[%emt 0:00:25]} dxc5 {[%emt 0:00:01]} 31. Rxc5 {[%emt 0:00:01]} Ra2 {[%emt 0:00:01]} 32. Rb2 {[%emt 0:00:28]} Qa3 {[%emt 0:00:10]} 33. Rxa2 {[%emt 0:00:52]} Qxc5 {[%emt 0:00:01]} 34. g3 {[%emt 0:00:35]} d3+ {[%emt 0:00:27]} 35. Qe3 {[%emt 0:00:03]} Ne6 {[%emt 0:00:30]} 1/2-1/2

[Event "RUS-ch Rapid Men 2018"]
[Site "Sochi"]
[Date "2018.10.05"]
[Round "3"]
[White "Rozum, Ivan"]
[Black "Nazaretyan, Tigran"]
[Result "1-0"]
[ECO "A13"]
[WhiteElo "2573"]
[BlackElo "2248"]
[Annotator "RC"]
[PlyCount "129"]
[EventDate "2018.10.05"]
[EventType "swiss"]
[EventCountry "RUS"]
[SourceTitle "playchess.com"]
[Source "ChessBase"]
[SourceQuality "1"]
[TimeControl "900+10"]

1. c4 {[%emt 0:00:00]} e6 {[%emt 0:00:16]} 2. Nc3 {[%emt 0:00:09]} d5 {[%emt 0:00:03]} 3. e3 {[%emt 0:00:03]} Nf6 {[%emt 0:00:15]} 4. Nf3 {[%emt 0:00:02]} Be7 {[%emt 0:00:33]} 5. b3 {[%emt 0:00:03]} O-O {[%emt 0:00:07]} 6. Bb2 {[%emt 0:00:02]} b6 {[%emt 0:00:36]} 7. cxd5 {[%emt 0:00:35]} Nxd5 {[%emt 0:00:18]} 8. Nxd5 {[%emt 0:00:14]} Qxd5 {[%emt 0:00:07]} 9. Qc2 {[%emt 0:00:11]} Ba6 {[%emt 0:02:52]} 10. Bc4 {[%emt 0:01:10]} Bxc4 {[%emt 0:00:46]} 11. bxc4 {[%emt 0:00:02]} Qb7 {[%emt 0:01:16]} 12. d4 {[%emt 0:00:27]} c5 {[%emt 0:00:41]} 13. dxc5 {[%emt 0:00:47]} bxc5 {[%emt 0:01:57]} 14. h4 {[%emt 0:00:02]} f6 {[%emt 0:01:30]} 15. Ke2 {[%emt 0:00:48]} Nc6 {[%emt 0:00:51]} 16. a3 {[%emt 0:00:31]} Rab8 {[%emt 0:00:18]} 17. Rab1 {[%emt 0:00:15]} Qa6 {[%emt 0:02:20]} 18. g4 {[%emt 0:02:07]} Na5 {[%emt 0:00:42]} 19. Rhc1 {[%emt 0:00:57]} Rfd8 {[%emt 0:00:45]} 20. Qa4 {[%emt 0:00:35]} Rb6 {[%emt 0:00:27]} 21. Bc3 {[%emt 0:01:12]} Nb3 {[%emt 0:00:08]} 22. Qxa6 {[%emt 0:00:29]} Nxc1+ {[%emt 0:00:02]} 23. Rxc1 {[%emt 0:00:02]} Rxa6 {[%emt 0:00:02]} 24. Bb2 {[%emt 0:00:07]} Rb8 {[%emt 0:00:06]} 25. Rc2 {[%emt 0:00:01]} Rab6 {[%emt 0:00:09]} 26. Bc1 {[%emt 0:00:04]} Kf7 {[%emt 0:00:31]} 27. Nd2 {[%emt 0:00:37]} h5 {[%emt 0:00:09]} 28. gxh5 {[%emt 0:02:01]} Rh8 {[%emt 0:00:05]} 29. e4 {[%emt 0:00:10]} Rxh5 {[%emt 0:00:11]} 30. Nf3 {[%emt 0:00:01]} Rh8 {[%emt 0:00:21]} 31. Kf1 {[%emt 0:00:21]} Rd8 {[%emt 0:00:06]} 32. Ke2 {[%emt 0:00:11]} Rb3 {[%emt 0:00:07]} 33. Ne1 {[%emt 0:00:17]} Rd4 {[%emt 0:00:20]} 34. f3 {[%emt 0:00:06]} Rd8 {[%emt 0:00:08]} 35. Ng2 {[%emt 0:00:08]} Bd6 {[%emt 0:00:08]} 36. Bf4 {[%emt 0:00:57]} Bxf4 {[%emt 0:00:10]} 37. Nxf4 {[%emt 0:00:01]} Rxa3 {[%emt 0:00:03]} 38. Rb2 {[%emt 0:00:05]} Rd7 {[%emt 0:00:21]} 39. h5 {[%emt 0:00:10]} Ra6 {[%emt 0:00:29]} 40. Rb5 {[%emt 0:00:11]} Rc6 {[%emt 0:00:17]} 41. Ng6 {[%emt 0:00:12]} Rc8 {[%emt 0:00:07]} 42. f4 {[%emt 0:00:15]} Kg8 {[%emt 0:00:09]} 43. Ra5 {[%emt 0:00:28]} Kh7 {[%emt 0:00:14]} 44. Ra6 {[%emt 0:00:01]} e5 {[%emt 0:00:11]} 45. fxe5 {[%emt 0:00:11]} fxe5 {[%emt 0:00:02]} 46. Ke3 {[%emt 0:00:22]} Rd1 {[%emt 0:00:32]} 47. Rxa7 {[%emt 0:00:25]} Re8 {[%emt 0:00:23]} 48. Rc7 {[%emt 0:00:10]} Rh1 {[%emt 0:00:02]} 49. Ne7 {[%emt 0:00:17]} Rxh5 {[%emt 0:00:09]} 50. Nf5 {[%emt 0:00:09]} Rg5 {[%emt 0:00:19]} 51. Rxc5 {[%emt 0:00:02]} g6 {[%emt 0:00:00]} 52. Rc7+ {[%emt 0:00:00]} Kh8 {[%emt 0:00:05]} 53. Nd6 {[%emt 0:00:00]} Rf8 {[%emt 0:00:19]} 54. Nf7+ {[%emt 0:00:00]} Rxf7 {[%emt 0:00:01]} 55. Rxf7 {[%emt 0:00:00]} Rg3+ {[%emt 0:00:02]} 56. Kd2 {[%emt 0:00:18]} Rg4 {[%emt 0:00:23]} 57. c5 {[%emt 0:01:05]} Kg8 {[%emt 0:00:08]} 58. Rb7 {[%emt 0:00:02]} Rg2+ {[%emt 0:00:36]} 59. Kd3 {[%emt 0:00:08]} Rg3+ {[%emt 0:00:08]} 60. Kc4 {[%emt 0:00:02]} Rg1 {[%emt 0:00:14]} 61. c6 {[%emt 0:00:12]} Rc1+ {[%emt 0:00:19]} 62. Kd5 {[%emt 0:00:02]} Kf8 {[%emt 0:00:06]} 63. c7 {[%emt 0:00:25]} Ke8 {[%emt 0:00:01]} 64. Kd6 {[%emt 0:00:01]} Rd1+ {[%emt 0:00:19]} 65. Ke6 {[%emt 0:00:01]} 1-0

[Event "RUS-ch Rapid Men 2018"]
[Site "Sochi"]
[Date "2018.10.05"]
[Round "3"]
[White "Panarin, Mikhail"]
[Black "Daurbekov, Murad"]
[Result "1-0"]
[ECO "C07"]
[WhiteElo "2562"]
[BlackElo "2063"]
[Annotator "ChessBase"]
[PlyCount "89"]
[EventDate "2018.10.05"]
[EventType "swiss"]
[EventCountry "RUS"]
[SourceTitle "playchess.com"]
[Source "ChessBase"]
[SourceQuality "1"]
[TimeControl "900+10"]

1. e4 {[%emt 0:00:00]} e6 {[%emt 0:00:00]} 2. d4 {[%emt 0:00:00]} d5 {[%emt 0:00:00]} 3. Nd2 {[%emt 0:00:00]} c5 {[%emt 0:00:00]} 4. exd5 {[%emt 0:00:00]} Qxd5 {[%emt 0:00:01]} 5. Ngf3 {[%emt 0:00:00]} cxd4 {[%emt 0:00:03]} 6. Bc4 {[%emt 0:00:02]} Qd8 {[%emt 0:00:12]} 7. O-O {[%emt 0:00:03]} Nc6 {[%emt 0:00:02]} 8. Nb3 {[%emt 0:00:03]} a6 {[%emt 0:00:04]} 9. a4 {[%emt 0:00:02]} Nf6 {[%emt 0:00:22]} 10. Qe2 {[%emt 0:00:13]} Be7 {[%emt 0:00:46]} 11. Rd1 {[%emt 0:00:04]} Qc7 {[%emt 0:00:30]} 12. Nbxd4 {[%emt 0:00:32]} Nxd4 {[%emt 0:00:58]} 13. Rxd4 {[%emt 0:00:18]} O-O {[%emt 0:00:24]} 14. Bf4 {[%emt 0:01:13]} Qb6 {[%emt 0:00:44]} 15. c3 {[%emt 0:00:23]} Bd7 {[%emt 0:01:09]} 16. Ne5 {[%emt 0:03:24]} Rfd8 {[%emt 0:02:15]} 17. a5 {[%emt 0:01:00]} Qc5 {[%emt 0:01:24]} 18. Nxd7 {[%emt 0:00:58]} Rxd7 {[%emt 0:00:10]} 19. Rxd7 {[%emt 0:00:08]} Nxd7 {[%emt 0:00:02]} 20. Bxe6 {[%emt 0:00:15]} Nf6 {[%emt 0:01:54]} 21. Bb3 {[%emt 0:00:37]} Re8 {[%emt 0:00:44]} 22. Be3 {[%emt 0:01:14]} Qc8 {[%emt 0:02:23]} 23. Qc4 {[%emt 0:01:18]} Qxc4 {[%emt 0:00:11]} 24. Bxc4 {[%emt 0:00:01]} Bd8 {[%emt 0:00:19]} 25. Bd4 {[%emt 0:00:16]} Bc7 {[%emt 0:01:11]} 26. h3 {[%emt 0:00:33]} h6 {[%emt 0:00:40]} 27. Kf1 {[%emt 0:00:22]} Ne4 {[%emt 0:00:28]} 28. Bd5 {[%emt 0:00:29]} Nd2+ {[%emt 0:01:01]} 29. Kg1 {[%emt 0:00:02]} Rd8 {[%emt 0:00:04]} 30. Ba2 {[%emt 0:04:12]} Bxa5 {[%emt 0:00:32]} 31. f3 {[%emt 0:00:02]} Bc7 {[%emt 0:00:38]} 32. Rd1 {[%emt 0:00:29]} Bf4 {[%emt 0:00:10]} 33. Kf2 {[%emt 0:00:01]} h5 {[%emt 0:00:29]} 34. Ke2 {[%emt 0:00:51]} h4 {[%emt 0:00:28]} 35. Rxd2 {[%emt 0:00:19]} Bxd2 {[%emt 0:00:02]} 36. Kxd2 {[%emt 0:00:01]} Rd6 {[%emt 0:00:00]} 37. Ke3 {[%emt 0:00:14]} Rg6 {[%emt 0:00:33]} 38. Kf2 {[%emt 0:00:02]} Kf8 {[%emt 0:00:04]} 39. Bd5 {[%emt 0:00:08]} b5 {[%emt 0:00:11]} 40. f4 {[%emt 0:00:28]} Ke8 {[%emt 0:00:19]} 41. Bc5 {[%emt 0:00:02]} Rf6 {[%emt 0:00:06]} 42. Ke3 {[%emt 0:00:05]} Rf5 {[%emt 0:00:14]} 43. Ke4 {[%emt 0:00:06]} g6 {[%emt 0:00:01]} 44. b4 {[%emt 0:00:21]} Kd7 {[%emt 0:00:18]} 45. Bf2 {[%emt 0:00:16]} 1-0

[Event "RUS-ch Rapid Men 2018"]
[Site "Sochi"]
[Date "2018.10.05"]
[Round "3"]
[White "Smagin, Sergey"]
[Black "Kobalia, Mikhail"]
[Result "1/2-1/2"]
[ECO "B40"]
[WhiteElo "2551"]
[BlackElo "2620"]
[Annotator "RC"]
[PlyCount "40"]
[EventDate "2018.10.05"]
[EventType "swiss"]
[EventCountry "RUS"]
[SourceTitle "playchess.com"]
[Source "ChessBase"]
[SourceQuality "1"]
[TimeControl "900+10"]

1. e4 {[%emt 0:00:00]} c5 {[%emt 0:00:00]} 2. Nf3 {[%emt 0:00:00]} e6 {[%emt 0:00:00]} 3. c3 {[%emt 0:00:00]} Nf6 {[%emt 0:00:00]} 4. e5 {[%emt 0:00:00]} Nd5 {[%emt 0:00:00]} 5. Na3 {[%emt 0:00:06]} d6 {[%emt 0:00:34]} 6. Nc4 {[%emt 0:00:09]} dxe5 {[%emt 0:00:02]} 7. Ncxe5 {[%emt 0:00:01]} Nd7 {[%emt 0:00:19]} 8. Nxd7 {[%emt 0:02:02]} Bxd7 {[%emt 0:00:05]} 9. Ne5 {[%emt 0:00:01]} Bd6 {[%emt 0:00:13]} 10. Nxd7 {[%emt 0:00:20]} Qxd7 {[%emt 0:00:02]} 11. d4 {[%emt 0:00:03]} cxd4 {[%emt 0:00:14]} 12. Qxd4 {[%emt 0:00:07]} O-O {[%emt 0:00:03]} 13. Be2 {[%emt 0:00:28]} Qc7 {[%emt 0:00:09]} 14. Qc4 {[%emt 0:00:56]} Nf4 {[%emt 0:02:48]} 15. Qxc7 {[%emt 0:01:14]} Bxc7 {[%emt 0:00:01]} 16. Bf3 {[%emt 0:02:00]} Nd3+ {[%emt 0:00:25]} 17. Ke2 {[%emt 0:00:03]} Nxc1+ {[%emt 0:00:40]} 18. Raxc1 {[%emt 0:00:03]} Rad8 {[%emt 0:00:06]} 19. Rcd1 {[%emt 0:00:21]} b6 {[%emt 0:00:01]} 20. h3 {[%emt 0:00:06]} f5 1/2-1/2

[Event "RUS-ch Rapid Men 2018"]
[Site "Sochi"]
[Date "2018.10.05"]
[Round "3"]
[White "Sviridov, Valery"]
[Black "Antipov, Mikhail Al."]
[Result "0-1"]
[ECO "A05"]
[WhiteElo "2551"]
[BlackElo "2593"]
[Annotator "RC"]
[PlyCount "130"]
[EventDate "2018.10.05"]
[EventType "swiss"]
[EventCountry "RUS"]
[SourceTitle "playchess.com"]
[Source "ChessBase"]
[SourceQuality "1"]
[TimeControl "900+10"]

1. Nf3 {[%emt 0:00:00]} Nf6 {[%emt 0:00:00]} 2. g3 {[%emt 0:00:00]} d5 {[%emt 0:00:00]} 3. Bg2 {[%emt 0:00:00]} c6 {[%emt 0:00:00]} 4. O-O {[%emt 0:00:03]} a6 {[%emt 0:00:00]} 5. d3 {[%emt 0:00:03]} Bf5 {[%emt 0:00:00]} 6. c4 {[%emt 0:00:11]} dxc4 {[%emt 0:00:00]} 7. dxc4 {[%emt 0:00:02]} Qxd1 {[%emt 0:00:01]} 8. Rxd1 {[%emt 0:00:03]} e6 {[%emt 0:00:10]} 9. Nc3 {[%emt 0:00:05]} Bc2 {[%emt 0:00:17]} 10. Re1 {[%emt 0:01:00]} Bg6 {[%emt 0:00:41]} 11. Ne5 {[%emt 0:01:07]} Nbd7 {[%emt 0:00:05]} 12. Nxg6 {[%emt 0:00:08]} hxg6 {[%emt 0:00:01]} 13. Rd1 {[%emt 0:00:37]} O-O-O {[%emt 0:03:26]} 14. Bg5 {[%emt 0:00:12]} Bb4 {[%emt 0:00:43]} 15. Ne4 {[%emt 0:00:43]} Nxe4 {[%emt 0:01:47]} 16. Bxd8 {[%emt 0:02:00]} Nxf2 {[%emt 0:00:02]} 17. Kxf2 {[%emt 0:00:02]} Kxd8 {[%emt 0:00:03]} 18. h3 {[%emt 0:00:10]} Bc5+ {[%emt 0:00:29]} 19. e3 {[%emt 0:00:06]} Ke7 {[%emt 0:00:09]} 20. b4 {[%emt 0:00:12]} Bd6 {[%emt 0:00:53]} 21. Rab1 {[%emt 0:00:42]} Rc8 {[%emt 0:03:05]} 22. Rd2 {[%emt 0:01:54]} Rc7 {[%emt 0:01:09]} 23. c5 {[%emt 0:00:19]} Be5 {[%emt 0:00:02]} 24. a3 {[%emt 0:01:40]} Rc8 {[%emt 0:00:17]} 25. Rbd1 {[%emt 0:00:08]} Nf6 {[%emt 0:00:09]} 26. Bf3 {[%emt 0:00:17]} g5 {[%emt 0:00:10]} 27. Rb1 {[%emt 0:00:19]} g6 {[%emt 0:01:42]} 28. Rc2 {[%emt 0:00:27]} Nd7 {[%emt 0:00:27]} 29. a4 {[%emt 0:00:21]} Rc7 {[%emt 0:00:10]} 30. Rbc1 {[%emt 0:01:06]} Bf6 {[%emt 0:00:28]} 31. Be2 {[%emt 0:00:05]} Ke8 {[%emt 0:00:59]} 32. Bf3 {[%emt 0:03:42]} Be7 {[%emt 0:00:12]} 33. Be2 {[%emt 0:00:08]} Rc8 {[%emt 0:00:03]} 34. Bf3 {[%emt 0:00:31]} Ne5 {[%emt 0:00:04]} 35. Be2 {[%emt 0:00:02]} Rd8 {[%emt 0:00:51]} 36. b5 {[%emt 0:00:13]} axb5 {[%emt 0:00:16]} 37. axb5 {[%emt 0:00:01]} Ra8 {[%emt 0:00:12]} 38. bxc6 {[%emt 0:00:03]} bxc6 {[%emt 0:00:01]} 39. Rb1 {[%emt 0:00:15]} Kf8 {[%emt 0:00:16]} 40. Rb4 {[%emt 0:00:44]} Ra5 {[%emt 0:00:22]} 41. Re4 {[%emt 0:00:09]} Nd7 {[%emt 0:00:20]} 42. Rd4 {[%emt 0:00:27]} Nxc5 {[%emt 0:00:31]} 43. Bf3 {[%emt 0:00:03]} Ra6 {[%emt 0:00:14]} 44. Rdc4 {[%emt 0:00:07]} Nd3+ {[%emt 0:00:04]} 45. Ke2 {[%emt 0:00:12]} Ne5 {[%emt 0:00:17]} 46. Re4 {[%emt 0:00:38]} Bd6 {[%emt 0:00:16]} 47. Rd4 {[%emt 0:00:04]} Ke7 {[%emt 0:00:11]} 48. Rdd2 {[%emt 0:00:43]} Bb4 {[%emt 0:00:57]} 49. Ra2 {[%emt 0:00:07]} Rb6 {[%emt 0:00:00]} 50. Rdc2 {[%emt 0:00:14]} Kf6 {[%emt 0:00:06]} 51. Be4 {[%emt 0:00:02]} c5 {[%emt 0:00:10]} 52. Ra1 {[%emt 0:00:08]} Rb8 {[%emt 0:00:04]} 53. Ra8 {[%emt 0:00:04]} Rb6 {[%emt 0:00:02]} 54. Ra1 {[%emt 0:00:01]} Kg7 {[%emt 0:00:09]} 55. Rcc1 {[%emt 0:00:34]} g4 {[%emt 0:00:46]} 56. hxg4 {[%emt 0:00:14]} Nxg4 {[%emt 0:00:01]} 57. Rab1 {[%emt 0:00:20]} Ne5 {[%emt 0:00:23]} 58. Bg2 {[%emt 0:00:27]} f5 {[%emt 0:00:06]} 59. Ra1 {[%emt 0:00:10]} Kf6 {[%emt 0:00:04]} 60. Rh1 {[%emt 0:00:12]} Bc3 {[%emt 0:00:04]} 61. Ra2 {[%emt 0:00:06]} Rb3 {[%emt 0:00:17]} 62. Rc1 {[%emt 0:00:18]} Bb4 {[%emt 0:00:06]} 63. Bf3 {[%emt 0:00:12]} c4 {[%emt 0:00:09]} 64. Rac2 {[%emt 0:00:13]} Ba3 {[%emt 0:00:21]} 65. Re1 {[%emt 0:00:12]} Bc5 {[%emt 0:00:02]} 0-1